[Event "Wuerttemberg Rapid Teams 2024"]
[Site "B?blingen, Germany"]
[Date "2024.04.13"]
[Round "3.8"]
[White "Schuh, Bernd-Martin"]
[Black "Birkenmaier, Rainer"]
[Result "0-1"]
[ECO "A14"]
[WhiteElo "1976"]
[BlackElo "2111"]
[Annotator "RC"]
[PlyCount "112"]
[EventDate "2024.04.13"]
[EventType "team-tourn"]
[SourceTitle "playchess.com"]
[Source "ChessBase"]
[SourceQuality "1"]
[TimeControl "900+5"]

1. Nf3 {[%emt 0:00:02]} d5 {[%emt 0:00:05]} 2. g3 {[%emt 0:00:01]} Nf6 {[%emt 0:00:02]} 3. c4 {[%emt 0:00:03]} e6 {[%emt 0:00:03]} 4. b3 {[%emt 0:00:01]} Be7 {[%emt 0:00:04]} 5. Bb2 {[%emt 0:00:02]} O-O {[%emt 0:00:02]} 6. Bg2 {[%emt 0:00:01]} c6 {[%emt 0:00:02]} 7. O-O {[%emt 0:00:02]} Nbd7 {[%emt 0:00:06]} 8. d3 {[%emt 0:00:03]} b6 {[%emt 0:00:24]} 9. Nbd2 {[%emt 0:00:09]} Bb7 {[%emt 0:00:03]} 10. Rc1 {[%emt 0:00:12]} c5 {[%emt 0:00:06]} 11. cxd5 {[%emt 0:00:26]} Nxd5 {[%emt 0:00:07]} 12. a3 {[%emt 0:00:23]} Bf6 {[%emt 0:00:14]} 13. Qc2 {[%emt 0:00:02]} Bxb2 {[%emt 0:00:09]} 14. Qxb2 {[%emt 0:00:02]} Qf6 {[%emt 0:00:02]} 15. Qxf6 {[%emt 0:00:05]} N7xf6 {[%emt 0:00:06]} 16. Ne5 {[%emt 0:00:13]} Rac8 {[%emt 0:00:21]} 17. Ndc4 {[%emt 0:00:15]} Rfd8 {[%emt 0:00:08]} 18. b4 {[%emt 0:00:37]} cxb4 {[%emt 0:00:21]} 19. axb4 {[%emt 0:00:02]} Ba6 {[%emt 0:00:27]} 20. Ra1 {[%emt 0:01:04]} Bxc4 {[%emt 0:00:06]} 21. Nxc4 {[%emt 0:00:07]} Rc7 {[%emt 0:00:23]} 22. Rfb1 {[%emt 0:00:34]} Nc3 {[%emt 0:00:44]} 23. Rb2 {[%emt 0:00:02]} Nb5 {[%emt 0:00:02]} 24. Bf1 {[%emt 0:00:56]} Ne8 {[%emt 0:00:15]} 25. e3 {[%emt 0:00:04]} Ned6 {[%emt 0:00:33]} 26. Nxd6 {[%emt 0:00:07]} Nxd6 {[%emt 0:00:01]} 27. Rba2 {[%emt 0:00:05]} Rdd7 {[%emt 0:00:05]} 28. d4 {[%emt 0:00:13]} f5 {[%emt 0:00:20]} 29. b5 {[%emt 0:00:08]} Kf7 {[%emt 0:00:16]} 30. Rb2 {[%emt 0:00:01]} Rc3 {[%emt 0:00:37]} 31. Bg2 {[%emt 0:00:06]} Rdc7 {[%emt 0:00:16]} 32. Bf1 {[%emt 0:00:49]} Rc1 {[%emt 0:00:20]} 33. Rba2 {[%emt 0:00:02]} Rxa1 {[%emt 0:00:02]} 34. Rxa1 {[%emt 0:00:01]} Kf6 {[%emt 0:00:04]} 35. Kg2 {[%emt 0:00:01]} g5 {[%emt 0:00:01]} 36. Ra2 {[%emt 0:00:09]} g4 {[%emt 0:00:11]} 37. h4 {[%emt 0:00:05]} h5 {[%emt 0:00:21]} 38. Be2 {[%emt 0:00:05]} Ne4 {[%emt 0:00:31]} 39. Bd3 {[%emt 0:00:16]} Nc3 {[%emt 0:00:13]} 40. Ra3 {[%emt 0:00:15]} e5 {[%emt 0:00:08]} 41. dxe5+ {[%emt 0:00:18]} Kxe5 {[%emt 0:00:01]} 42. Rb3 {[%emt 0:00:40]} Nd5 {[%emt 0:00:21]} 43. Bf1 {[%emt 0:00:42]} Nc3 {[%emt 0:01:04]} 44. Rb4 {[%emt 0:00:14]} Rc5 {[%emt 0:00:26]} 45. Bd3 {[%emt 0:00:51]} Rd5 {[%emt 0:01:06]} 46. Bc4 {[%emt 0:00:18]} Rd2 {[%emt 0:00:12]} 47. Bf7 {[%emt 0:00:35]} Ne4 {[%emt 0:00:04]} 48. Bxh5 {[%emt 0:00:17]} Rxf2+ {[%emt 0:00:13]} 49. Kg1 {[%emt 0:00:05]} Rd2 {[%emt 0:00:12]} 50. Be8 {[%emt 0:00:18]} Nxg3 {[%emt 0:00:25]} 51. h5 {[%emt 0:00:10]} Rd8 {[%emt 0:00:12]} 52. Bg6 {[%emt 0:00:37]} Ne4 {[%emt 0:00:29]} 53. Ra4 {[%emt 0:00:20]} Rd1+ {[%emt 0:00:52]} 54. Kg2 {[%emt 0:00:03]} Rd2+ {[%emt 0:00:02]} 55. Kg1 {[%emt 0:00:10]} Ng5 {[%emt 0:00:32]} 56. h6 {[%emt 0:00:32]} g3 {[%emt 0:00:10]} 0-1

[Event "Wuerttemberg Rapid Teams 2024"]
[Site "B?blingen, Germany"]
[Date "2024.04.13"]
[Round "3.9"]
[White "Kottke, Markus"]
[Black "Zuferi, Enis"]
[Result "1-0"]
[ECO "E60"]
[WhiteElo "2218"]
[BlackElo "2406"]
[Annotator "RC"]
[PlyCount "103"]
[EventDate "2024.04.13"]
[EventType "team-tourn"]
[SourceTitle "playchess.com"]
[Source "ChessBase"]
[SourceQuality "1"]
[TimeControl "900+5"]

1. d4 {[%emt 0:00:02]} Nf6 {[%emt 0:00:01]} 2. c4 {[%emt 0:00:02]} g6 {[%emt 0:00:00]} 3. h4 {[%emt 0:00:01]} Bg7 {[%emt 0:00:07]} 4. Nc3 {[%emt 0:00:01]} d6 {[%emt 0:00:05]} 5. e4 {[%emt 0:00:02]} Nbd7 {[%emt 0:00:09]} 6. Be2 {[%emt 0:00:04]} h5 {[%emt 0:00:07]} 7. Nf3 {[%emt 0:00:18]} c5 {[%emt 0:00:24]} 8. d5 {[%emt 0:00:02]} a6 {[%emt 0:00:19]} 9. a4 {[%emt 0:00:03]} b6 {[%emt 0:00:16]} 10. O-O {[%emt 0:00:40]} Ne5 {[%emt 0:01:40]} 11. Nxe5 {[%emt 0:00:19]} dxe5 {[%emt 0:00:01]} 12. a5 {[%emt 0:00:01]} bxa5 {[%emt 0:01:13]} 13. Qa4+ {[%emt 0:00:10]} Nd7 {[%emt 0:00:16]} 14. Qxa5 {[%emt 0:01:38]} Rb8 {[%emt 0:00:12]} 15. Qa3 {[%emt 0:01:29]} Qb6 {[%emt 0:00:23]} 16. Na4 {[%emt 0:02:08]} Qb4 {[%emt 0:01:54]} 17. Qxb4 {[%emt 0:02:21]} Rxb4 {[%emt 0:00:01]} 18. Bd2 {[%emt 0:01:12]} Rb8 {[%emt 0:00:02]} 19. Be3 {[%emt 0:02:06]} Bh6 {[%emt 0:00:03]} 20. Nxc5 {[%emt 0:00:04]} Bxe3 {[%emt 0:00:29]} 21. Nxd7 {[%emt 0:00:02]} Rxb2 {[%emt 0:00:52]} 22. fxe3 {[%emt 0:01:09]} Rxe2 {[%emt 0:01:13]} 23. Nb6 {[%emt 0:01:59]} O-O {[%emt 0:01:13]} 24. Rfe1 {[%emt 0:00:01]} Rc2 {[%emt 0:00:26]} 25. Rac1 {[%emt 0:00:03]} Rb2 {[%emt 0:00:24]} 26. c5 {[%emt 0:00:01]} f5 {[%emt 0:00:11]} 27. Nc4 {[%emt 0:00:13]} Rb4 {[%emt 0:00:11]} 28. Nxe5 {[%emt 0:00:01]} Rxe4 {[%emt 0:00:11]} 29. Nxg6 {[%emt 0:00:01]} Rf7 {[%emt 0:00:23]} 30. c6 {[%emt 0:00:18]} Rg7 {[%emt 0:00:00]} 31. Nf4 {[%emt 0:00:01]} a5 {[%emt 0:00:50]} 32. Rb1 {[%emt 0:00:13]} Kh7 {[%emt 0:00:17]} 33. Rb8 {[%emt 0:00:13]} Rg8 {[%emt 0:00:00]} 34. Ra8 {[%emt 0:00:10]} a4 {[%emt 0:00:02]} 35. Kf2 {[%emt 0:00:11]} Rb4 {[%emt 0:00:06]} 36. Ra7 {[%emt 0:00:08]} Rg7 {[%emt 0:00:13]} 37. Re2 {[%emt 0:00:00]} Kh6 {[%emt 0:00:12]} 38. Ra2 {[%emt 0:00:16]} e5 {[%emt 0:00:28]} 39. Rxg7 {[%emt 0:00:02]} exf4 {[%emt 0:00:01]} 40. Rg8 {[%emt 0:00:13]} fxe3+ {[%emt 0:00:01]} 41. Kxe3 {[%emt 0:00:01]} f4+ {[%emt 0:00:01]} 42. Kf2 {[%emt 0:00:04]} Bf5 {[%emt 0:00:11]} 43. Rf8 {[%emt 0:00:16]} Bb1 {[%emt 0:00:15]} 44. c7 {[%emt 0:00:01]} Bxa2 {[%emt 0:00:08]} 45. c8=Q {[%emt 0:00:02]} Rb2+ {[%emt 0:00:03]} 46. Kg1 {[%emt 0:00:01]} Bxd5 {[%emt 0:00:12]} 47. Rh8+ {[%emt 0:00:05]} Kg6 {[%emt 0:00:00]} 48. Qe8+ {[%emt 0:00:02]} Bf7 {[%emt 0:00:10]} 49. Qc6+ {[%emt 0:00:04]} Kf5 {[%emt 0:00:05]} 50. Qd7+ {[%emt 0:00:11]} Be6 {[%emt 0:00:07]} 51. Rxh5+ {[%emt 0:00:13]} Kf6 {[%emt 0:00:02]} 52. Rh6+ {[%emt 0:00:00]} 1-0

[Event "Wuerttemberg Rapid Teams 2024"]
[Site "B?blingen, Germany"]
[Date "2024.04.13"]
[Round "3.10"]
[White "Hofer, Markus"]
[Black "Huber, Philipp"]
[Result "0-1"]
[ECO "A53"]
[WhiteElo "2047"]
[BlackElo "2306"]
[Annotator "RC"]
[PlyCount "58"]
[EventDate "2024.04.13"]
[EventType "team-tourn"]
[SourceTitle "playchess.com"]
[Source "ChessBase"]
[SourceQuality "1"]
[TimeControl "900+5"]

1. d4 {[%emt 0:00:00]} Nf6 {[%emt 0:00:01]} 2. c4 {[%emt 0:00:01]} d6 {[%emt 0:00:01]} 3. Nc3 {[%emt 0:00:10]} e5 {[%emt 0:00:02]} 4. dxe5 {[%emt 0:00:22]} dxe5 {[%emt 0:00:03]} 5. Qxd8+ {[%emt 0:00:02]} Kxd8 {[%emt 0:00:02]} 6. Bg5 {[%emt 0:00:01]} c6 {[%emt 0:00:07]} 7. Ne4 {[%emt 0:01:08]} Bb4+ {[%emt 0:00:32]} 8. Kd1 {[%emt 0:00:02]} Be7 {[%emt 0:00:05]} 9. Nxf6 {[%emt 0:00:19]} gxf6 {[%emt 0:00:03]} 10. Bh4 {[%emt 0:00:06]} Kc7 {[%emt 0:00:04]} 11. e4 {[%emt 0:00:47]} Rd8+ {[%emt 0:00:23]} 12. Kc2 {[%emt 0:00:02]} Na6 {[%emt 0:00:08]} 13. a3 {[%emt 0:00:23]} Nc5 {[%emt 0:00:06]} 14. f3 {[%emt 0:00:13]} a5 {[%emt 0:00:06]} 15. g3 {[%emt 0:02:42]} Be6 {[%emt 0:00:15]} 16. Nh3 {[%emt 0:01:26]} a4 {[%emt 0:00:21]} 17. Nf2 {[%emt 0:00:11]} Nb3 {[%emt 0:00:02]} 18. Rd1 {[%emt 0:00:02]} Nd4+ {[%emt 0:00:02]} 19. Kc1 {[%emt 0:00:26]} Nxf3 {[%emt 0:00:11]} 20. Be2 {[%emt 0:00:23]} Nxh4 {[%emt 0:00:19]} 21. gxh4 {[%emt 0:00:01]} f5 {[%emt 0:00:09]} 22. exf5 {[%emt 0:01:03]} Bxf5 {[%emt 0:00:04]} 23. Bd3 {[%emt 0:01:04]} Be6 {[%emt 0:00:01]} 24. Ne4 {[%emt 0:01:41]} Bxh4 {[%emt 0:00:16]} 25. Nc5 {[%emt 0:01:08]} Bg4 {[%emt 0:00:02]} 26. Rdf1 {[%emt 0:00:04]} Kb6 {[%emt 0:00:02]} 27. Rhg1 {[%emt 0:01:39]} Bc8 {[%emt 0:00:02]} 28. Bxh7 {[%emt 0:01:49]} Kxc5 {[%emt 0:00:08]} 29. Rxf7 {[%emt 0:00:01]} Rd4 {[%emt 0:00:12]} 0-1

[Event "Wuerttemberg Rapid Teams 2024"]
[Site "B?blingen, Germany"]
[Date "2024.04.13"]
[Round "3.12"]
[White "Brettschneider, Karl"]
[Black "Tschlatscher, Thomas"]
[Result "0-1"]
[ECO "E06"]
[WhiteElo "1965"]
[BlackElo "2217"]
[Annotator "RC"]
[PlyCount "154"]
[EventDate "2024.04.13"]
[EventType "team-tourn"]
[SourceTitle "playchess.com"]
[Source "ChessBase"]
[SourceQuality "1"]
[TimeControl "900+5"]

1. c4 {[%emt 0:00:02]} Nf6 {[%emt 0:00:07]} 2. Nc3 {[%emt 0:00:03]} e6 {[%emt 0:00:02]} 3. g3 {[%emt 0:00:10]} d5 {[%emt 0:00:03]} 4. cxd5 {[%emt 0:00:02]} exd5 {[%emt 0:00:02]} 5. d4 {[%emt 0:00:04]} c6 {[%emt 0:00:36]} 6. Nf3 {[%emt 0:00:06]} Be7 {[%emt 0:00:10]} 7. Bg2 {[%emt 0:00:08]} O-O {[%emt 0:00:04]} 8. O-O {[%emt 0:00:02]} Re8 {[%emt 0:00:09]} 9. Re1 {[%emt 0:00:09]} h6 {[%emt 0:00:52]} 10. h3 {[%emt 0:00:52]} Bf5 {[%emt 0:00:46]} 11. Bf4 {[%emt 0:00:35]} Bd6 {[%emt 0:01:32]} 12. Bxd6 {[%emt 0:00:41]} Qxd6 {[%emt 0:00:03]} 13. a3 {[%emt 0:01:00]} Nbd7 {[%emt 0:00:23]} 14. b4 {[%emt 0:00:35]} Ne4 {[%emt 0:01:05]} 15. Rc1 {[%emt 0:01:55]} a6 {[%emt 0:01:33]} 16. Nd2 {[%emt 0:02:40]} Ng5 {[%emt 0:01:28]} 17. g4 {[%emt 0:00:48]} Bh7 {[%emt 0:01:02]} 18. e4 {[%emt 0:01:13]} dxe4 {[%emt 0:00:34]} 19. Ndxe4 {[%emt 0:00:02]} Nxe4 {[%emt 0:00:10]} 20. Nxe4 {[%emt 0:00:21]} Bxe4 {[%emt 0:00:12]} 21. Rxe4 {[%emt 0:00:38]} Rxe4 {[%emt 0:00:55]} 22. Bxe4 {[%emt 0:00:01]} Nf6 {[%emt 0:00:19]} 23. Qd3 {[%emt 0:00:23]} Rd8 {[%emt 0:00:07]} 24. Rd1 {[%emt 0:00:18]} Qf4 {[%emt 0:00:06]} 25. Bf3 {[%emt 0:00:40]} Nd5 {[%emt 0:02:42]} 26. Bxd5 {[%emt 0:00:15]} Rxd5 {[%emt 0:00:02]} 27. Qe3 {[%emt 0:00:06]} Qd6 {[%emt 0:00:09]} 28. Qe8+ {[%emt 0:00:34]} Qf8 {[%emt 0:00:02]} 29. Qxf8+ {[%emt 0:00:08]} Kxf8 {[%emt 0:00:01]} 30. f4 {[%emt 0:00:11]} a5 {[%emt 0:00:12]} 31. Kf2 {[%emt 0:00:09]} Ke7 {[%emt 0:00:01]} 32. Ke3 {[%emt 0:00:01]} axb4 {[%emt 0:00:26]} 33. axb4 {[%emt 0:00:13]} Rb5 {[%emt 0:00:01]} 34. Rb1 {[%emt 0:00:04]} Rb6 {[%emt 0:00:02]} 35. Kd3 {[%emt 0:00:05]} Kd6 {[%emt 0:00:11]} 36. Kc4 {[%emt 0:00:03]} Ra6 {[%emt 0:00:04]} 37. Rb3 {[%emt 0:00:11]} b5+ {[%emt 0:00:07]} 38. Kd3 {[%emt 0:00:06]} Kd5 {[%emt 0:00:05]} 39. Rc3 {[%emt 0:00:07]} Ra4 {[%emt 0:00:02]} 40. Rb3 {[%emt 0:00:08]} Ra1 {[%emt 0:00:01]} 41. Rc3 {[%emt 0:00:58]} Rb1 {[%emt 0:00:02]} 42. Rc5+ {[%emt 0:00:07]} Kd6 {[%emt 0:00:01]} 43. Kc3 {[%emt 0:00:06]} Rh1 {[%emt 0:00:47]} 44. Rh5 {[%emt 0:00:01]} f6 {[%emt 0:00:14]} 45. g5 {[%emt 0:00:14]} hxg5 {[%emt 0:00:05]} 46. fxg5 {[%emt 0:00:01]} f5 {[%emt 0:00:48]} 47. Rh7 {[%emt 0:00:17]} f4 {[%emt 0:00:22]} 48. Rxg7 {[%emt 0:00:04]} Rxh3+ {[%emt 0:00:02]} 49. Kd2 {[%emt 0:00:01]} Kd5 {[%emt 0:00:02]} 50. Rf7 {[%emt 0:00:08]} Rg3 {[%emt 0:00:12]} 51. Rxf4 {[%emt 0:00:10]} Rxg5 {[%emt 0:00:01]} 52. Kc3 {[%emt 0:00:10]} Rg3+ {[%emt 0:00:01]} 53. Kc2 {[%emt 0:00:00]} Kc4 {[%emt 0:00:01]} 54. Rf6 {[%emt 0:00:03]} Rg2+ {[%emt 0:00:02]} 55. Kd1 {[%emt 0:00:03]} Kd5 {[%emt 0:00:02]} 56. Rf4 {[%emt 0:00:05]} Rb2 {[%emt 0:00:03]} 57. Rf5+ {[%emt 0:00:04]} Kxd4 {[%emt 0:00:01]} 58. Rc5 {[%emt 0:00:02]} Rxb4 {[%emt 0:00:02]} 59. Rxc6 {[%emt 0:00:02]} Rc4 {[%emt 0:00:01]} 60. Rb6 {[%emt 0:00:03]} Kc5 {[%emt 0:00:05]} 61. Rb8 {[%emt 0:00:02]} Kb4 {[%emt 0:00:01]} 62. Kd2 {[%emt 0:00:04]} Ka4 {[%emt 0:00:06]} 63. Ra8+ {[%emt 0:00:02]} Kb3 {[%emt 0:00:02]} 64. Ra1 {[%emt 0:00:08]} b4 {[%emt 0:00:04]} 65. Rb1+ {[%emt 0:00:05]} Ka2 {[%emt 0:00:02]} 66. Rh1 {[%emt 0:00:10]} b3 {[%emt 0:00:01]} 67. Kd3 {[%emt 0:00:06]} Rc7 {[%emt 0:00:02]} 68. Rh5 {[%emt 0:00:12]} b2 {[%emt 0:00:18]} 69. Ra5+ {[%emt 0:00:05]} Kb3 {[%emt 0:00:02]} 70. Rb5+ {[%emt 0:00:02]} Ka3 {[%emt 0:00:01]} 71. Rb8 {[%emt 0:00:08]} Rc1 {[%emt 0:00:01]} 72. Ra8+ {[%emt 0:00:03]} Kb3 {[%emt 0:00:02]} 73. Rb8+ {[%emt 0:00:02]} Ka2 {[%emt 0:00:01]} 74. Ra8+ {[%emt 0:00:01]} Kb1 {[%emt 0:00:01]} 75. Kd2 {[%emt 0:00:01]} Rc5 {[%emt 0:00:02]} 76. Ra7 {[%emt 0:00:06]} Rd5+ {[%emt 0:00:01]} 77. Kc3 {[%emt 0:00:01]} Kc1 {[%emt 0:00:05]} 0-1

[Event "Wuerttemberg Rapid Teams 2024"]
[Site "B?blingen, Germany"]
[Date "2024.04.13"]
[Round "3.13"]
[White "Kabisch, Thilo"]
[Black "Kerpe, Andreas"]
[Result "1-0"]
[ECO "C76"]
[WhiteElo "2228"]
[BlackElo "2146"]
[Annotator "RC"]
[PlyCount "69"]
[EventDate "2024.04.13"]
[EventType "team-tourn"]
[SourceTitle "playchess.com"]
[Source "ChessBase"]
[SourceQuality "1"]
[TimeControl "900+5"]

1. e4 {[%emt 0:00:04]} Nc6 {[%emt 0:00:03]} 2. Nf3 {[%emt 0:00:07]} e5 {[%emt 0:00:01]} 3. Bb5 {[%emt 0:00:03]} a6 {[%emt 0:00:16]} 4. Ba4 {[%emt 0:00:02]} d6 {[%emt 0:00:07]} 5. c3 {[%emt 0:00:05]} Bd7 {[%emt 0:00:02]} 6. O-O {[%emt 0:00:05]} g6 {[%emt 0:00:14]} 7. d4 {[%emt 0:00:06]} Bg7 {[%emt 0:00:01]} 8. Be3 {[%emt 0:00:51]} Nf6 {[%emt 0:00:47]} 9. Nbd2 {[%emt 0:00:11]} O-O {[%emt 0:00:29]} 10. Rc1 {[%emt 0:00:22]} h6 {[%emt 0:00:54]} 11. d5 {[%emt 0:00:05]} Ne7 {[%emt 0:00:02]} 12. Bxd7 {[%emt 0:00:10]} Nxd7 {[%emt 0:00:14]} 13. Ne1 {[%emt 0:00:11]} c6 {[%emt 0:01:52]} 14. c4 {[%emt 0:00:21]} c5 {[%emt 0:02:12]} 15. Nd3 {[%emt 0:00:39]} f5 {[%emt 0:00:25]} 16. f3 {[%emt 0:01:04]} Rc8 {[%emt 0:01:01]} 17. a3 {[%emt 0:00:00]} Nf6 {[%emt 0:00:38]} 18. b4 {[%emt 0:00:11]} b6 {[%emt 0:00:31]} 19. Rb1 {[%emt 0:00:37]} Qc7 {[%emt 0:01:44]} 20. Rb2 {[%emt 0:00:10]} Nd7 {[%emt 0:00:29]} 21. Qe2 {[%emt 0:00:27]} Rb8 {[%emt 0:00:27]} 22. Rfb1 {[%emt 0:00:05]} Rfc8 {[%emt 0:00:03]} 23. Qd1 {[%emt 0:00:18]} cxb4 {[%emt 0:00:28]} 24. axb4 {[%emt 0:00:06]} b5 {[%emt 0:00:10]} 25. c5 {[%emt 0:00:16]} dxc5 {[%emt 0:00:07]} 26. bxc5 {[%emt 0:00:04]} Nxd5 {[%emt 0:00:51]} 27. exd5 {[%emt 0:00:30]} e4 {[%emt 0:00:01]} 28. Qb3 {[%emt 0:00:45]} Kh7 {[%emt 0:00:15]} 29. c6 {[%emt 0:01:06]} exd3 {[%emt 0:00:33]} 30. cxd7 {[%emt 0:00:56]} Qxd7 {[%emt 0:00:03]} 31. Ra2 {[%emt 0:00:16]} Rc3 {[%emt 0:00:12]} 32. Qb4 {[%emt 0:00:32]} Qxd5 {[%emt 0:00:39]} 33. Rxa6 {[%emt 0:00:19]} Re8 {[%emt 0:00:06]} 34. Ra7 {[%emt 0:00:41]} Rc2 {[%emt 0:00:40]} 35. Qd4 {[%emt 0:00:49]} 1-0

[Event "Wuerttemberg Rapid Teams 2024"]
[Site "B?blingen, Germany"]
[Date "2024.04.13"]
[Round "3.14"]
[White "Vaysberg, Alexander"]
[Black "Trachtmann, Mark"]
[Result "1/2-1/2"]
[ECO "B12"]
[WhiteElo "2152"]
[BlackElo "2203"]
[Annotator "RC"]
[PlyCount "39"]
[EventDate "2024.04.13"]
[EventType "team-tourn"]
[SourceTitle "playchess.com"]
[Source "ChessBase"]
[SourceQuality "1"]
[TimeControl "900+5"]

1. e4 {[%emt 0:00:01]} c6 {[%emt 0:00:02]} 2. d4 {[%emt 0:00:02]} d5 {[%emt 0:00:01]} 3. e5 {[%emt 0:00:01]} c5 {[%emt 0:00:03]} 4. dxc5 {[%emt 0:00:04]} e6 {[%emt 0:00:02]} 5. Be3 {[%emt 0:00:06]} Nh6 {[%emt 0:00:15]} 6. Bd3 {[%emt 0:01:27]} Nd7 {[%emt 0:00:20]} 7. Nf3 {[%emt 0:02:09]} Nxc5 {[%emt 0:00:31]} 8. O-O {[%emt 0:01:42]} Nxd3 {[%emt 0:02:17]} 9. Qxd3 {[%emt 0:00:35]} Be7 {[%emt 0:00:53]} 10. c4 {[%emt 0:01:52]} dxc4 {[%emt 0:01:28]} 11. Qxc4 {[%emt 0:00:09]} Nf5 {[%emt 0:00:14]} 12. Bc5 {[%emt 0:01:31]} O-O {[%emt 0:01:08]} 13. Bxe7 {[%emt 0:00:05]} Qxe7 {[%emt 0:00:05]} 14. Nc3 {[%emt 0:00:03]} Bd7 {[%emt 0:00:11]} 15. Rfd1 {[%emt 0:00:25]} Rac8 {[%emt 0:00:26]} 16. Qf4 {[%emt 0:00:06]} Bc6 {[%emt 0:00:11]} 17. Ne4 {[%emt 0:00:24]} Bxe4 {[%emt 0:01:24]} 18. Qxe4 {[%emt 0:00:02]} Rfd8 {[%emt 0:00:07]} 19. g3 {[%emt 0:00:44]} h6 {[%emt 0:00:07]} 20. Rac1 {[%emt 0:00:36]} 1/2-1/2

[Event "Wuerttemberg Rapid Teams 2024"]
[Site "B?blingen, Germany"]
[Date "2024.04.13"]
[Round "3.15"]
[White "Krockenberger, Martin"]
[Black "Jerie, Sven"]
[Result "0-1"]
[ECO "E46"]
[WhiteElo "2125"]
[BlackElo "2018"]
[Annotator "RC"]
[PlyCount "85"]
[EventDate "2024.04.13"]
[EventType "team-tourn"]
[SourceTitle "playchess.com"]
[Source "ChessBase"]
[SourceQuality "1"]
[TimeControl "900+5"]

1. d4 {[%emt 0:00:03]} Nf6 {[%emt 0:00:04]} 2. c4 {[%emt 0:00:01]} e6 {[%emt 0:00:05]} 3. Nc3 {[%emt 0:00:01]} Bb4 {[%emt 0:00:04]} 4. e3 {[%emt 0:00:01]} O-O {[%emt 0:00:09]} 5. Nge2 {[%emt 0:00:01]} d5 {[%emt 0:00:11]} 6. a3 {[%emt 0:00:02]} Be7 {[%emt 0:00:13]} 7. cxd5 {[%emt 0:00:02]} exd5 {[%emt 0:00:07]} 8. Nf4 {[%emt 0:00:01]} c6 {[%emt 0:00:07]} 9. Bd3 {[%emt 0:00:01]} Bd6 {[%emt 0:00:15]} 10. O-O {[%emt 0:00:07]} Re8 {[%emt 0:00:17]} 11. f3 {[%emt 0:00:17]} a5 {[%emt 0:01:03]} 12. Bc2 {[%emt 0:00:10]} Qc7 {[%emt 0:01:11]} 13. g3 {[%emt 0:00:57]} Qe7 {[%emt 0:04:25]} 14. e4 {[%emt 0:00:11]} dxe4 {[%emt 0:01:01]} 15. fxe4 {[%emt 0:00:06]} Bc7 {[%emt 0:00:31]} 16. e5 {[%emt 0:00:23]} Ng4 {[%emt 0:00:15]} 17. Qd3 {[%emt 0:01:57]} g6 {[%emt 0:00:09]} 18. Qf3 {[%emt 0:01:13]} Bb6 {[%emt 0:00:21]} 19. Be3 {[%emt 0:02:18]} Nxe3 {[%emt 0:00:07]} 20. Qxe3 {[%emt 0:00:02]} Qxe5 {[%emt 0:00:12]} 21. Qxe5 {[%emt 0:00:23]} Rxe5 {[%emt 0:00:01]} 22. Rad1 {[%emt 0:00:16]} Re8 {[%emt 0:01:16]} 23. Kg2 {[%emt 0:00:15]} Na6 {[%emt 0:01:09]} 24. d5 {[%emt 0:00:49]} Bg4 {[%emt 0:00:06]} 25. Rd2 {[%emt 0:00:06]} Rad8 {[%emt 0:00:19]} 26. h3 {[%emt 0:00:26]} Be3 {[%emt 0:00:04]} 27. hxg4 {[%emt 0:00:34]} Bxd2 {[%emt 0:00:02]} 28. Ne4 {[%emt 0:00:01]} Bxf4 {[%emt 0:00:07]} 29. Nf6+ {[%emt 0:00:03]} Kf8 {[%emt 0:00:38]} 30. Nxe8 {[%emt 0:00:04]} Rxe8 {[%emt 0:00:13]} 31. gxf4 {[%emt 0:00:06]} Re2+ {[%emt 0:00:04]} 32. Rf2 {[%emt 0:00:01]} Rxf2+ {[%emt 0:00:02]} 33. Kxf2 {[%emt 0:00:01]} cxd5 {[%emt 0:00:01]} 34. Ke3 {[%emt 0:00:05]} Ke7 {[%emt 0:00:03]} 35. Kd4 {[%emt 0:00:02]} Kd6 {[%emt 0:00:02]} 36. Bd1 {[%emt 0:00:21]} h6 {[%emt 0:00:20]} 37. Bf3 {[%emt 0:00:22]} Nc7 {[%emt 0:00:04]} 38. f5 {[%emt 0:00:01]} Nb5+ {[%emt 0:00:10]} 39. Kd3 {[%emt 0:00:08]} Ke5 {[%emt 0:00:03]} 40. fxg6 {[%emt 0:00:10]} fxg6 {[%emt 0:00:02]} 41. Bd1 {[%emt 0:00:14]} Nd6 {[%emt 0:00:20]} 42. b3 {[%emt 0:00:12]} Ne4 {[%emt 0:00:08]} 43. b4 {[%emt 0:00:12]} 0-1

[Event "Wuerttemberg Rapid Teams 2024"]
[Site "B?blingen, Germany"]
[Date "2024.04.13"]
[Round "3.16"]
[White "Schaffert, Walter"]
[Black "Eisele, Steffen"]
[Result "1-0"]
[ECO "C00"]
[WhiteElo "2033"]
[BlackElo "2230"]
[Annotator "RC"]
[PlyCount "83"]
[EventDate "2024.04.13"]
[EventType "team-tourn"]
[SourceTitle "playchess.com"]
[Source "ChessBase"]
[SourceQuality "1"]
[TimeControl "900+5"]

1. e4 {[%emt 0:00:15]} e6 {[%emt 0:00:01]} 2. Qe2 {[%emt 0:00:04]} Nc6 {[%emt 0:00:12]} 3. f4 {[%emt 0:00:34]} Nd4 {[%emt 0:02:36]} 4. Qd1 {[%emt 0:00:50]} c5 {[%emt 0:00:13]} 5. c3 {[%emt 0:00:08]} Nc6 {[%emt 0:00:04]} 6. Nf3 {[%emt 0:00:05]} d5 {[%emt 0:00:04]} 7. e5 {[%emt 0:00:02]} d4 {[%emt 0:00:37]} 8. d3 {[%emt 0:00:07]} b6 {[%emt 0:00:30]} 9. Be2 {[%emt 0:00:16]} Bb7 {[%emt 0:00:02]} 10. O-O {[%emt 0:00:08]} h5 {[%emt 0:00:17]} 11. Nbd2 {[%emt 0:00:14]} Nh6 {[%emt 0:00:05]} 12. Ne4 {[%emt 0:00:06]} Nf5 {[%emt 0:00:06]} 13. c4 {[%emt 0:00:27]} Be7 {[%emt 0:00:10]} 14. Nfg5 {[%emt 0:00:48]} h4 {[%emt 0:01:33]} 15. a3 {[%emt 0:00:35]} Qd7 {[%emt 0:00:09]} 16. Bd2 {[%emt 0:00:13]} Ne3 {[%emt 0:01:34]} 17. Bxe3 {[%emt 0:00:10]} dxe3 {[%emt 0:00:01]} 18. Rf3 {[%emt 0:01:46]} Bxg5 {[%emt 0:01:23]} 19. Nxg5 {[%emt 0:00:05]} Nd4 {[%emt 0:00:03]} 20. Rxe3 {[%emt 0:00:09]} Nf5 {[%emt 0:00:01]} 21. Rh3 {[%emt 0:00:15]} Qd4+ {[%emt 0:00:03]} 22. Kh1 {[%emt 0:00:11]} Ne3 {[%emt 0:01:27]} 23. Qa4+ {[%emt 0:00:42]} Ke7 {[%emt 0:00:17]} 24. Bf3 {[%emt 0:00:13]} Bxf3 {[%emt 0:01:07]} 25. Rxf3 {[%emt 0:00:03]} Qxb2 {[%emt 0:00:32]} 26. Rg1 {[%emt 0:00:21]} Nf5 {[%emt 0:00:14]} 27. Qc6 {[%emt 0:00:20]} Rad8 {[%emt 0:00:34]} 28. a4 {[%emt 0:00:50]} Nd4 {[%emt 0:00:48]} 29. Qe4 {[%emt 0:00:36]} Nxf3 {[%emt 0:00:13]} 30. Qxf3 {[%emt 0:00:02]} Rd7 {[%emt 0:00:54]} 31. Ne4 {[%emt 0:00:47]} Rhd8 {[%emt 0:01:06]} 32. Qg4 {[%emt 0:00:16]} Rxd3 {[%emt 0:00:31]} 33. Qxg7 {[%emt 0:00:14]} h3 {[%emt 0:00:11]} 34. Qf6+ {[%emt 0:01:35]} Kd7 {[%emt 0:00:03]} 35. Qxf7+ {[%emt 0:00:03]} Kc6 {[%emt 0:00:06]} 36. Qxe6+ {[%emt 0:00:01]} Kb7 {[%emt 0:00:01]} 37. Nd6+ {[%emt 0:00:51]} Ka6 {[%emt 0:00:02]} 38. Qe7 {[%emt 0:00:47]} Rd1 {[%emt 0:00:01]} 39. Qb7+ {[%emt 0:00:12]} Ka5 {[%emt 0:00:01]} 40. Qxa7+ {[%emt 0:00:02]} Kb4 {[%emt 0:00:01]} 41. Qxb6+ {[%emt 0:00:03]} Kc3 {[%emt 0:00:05]} 42. Qxb2+ {[%emt 0:03:09]} 1-0